fUSD/lending_fUSD_20241207
["ID","MTS","AMOUNT","RATE_DAILY","PERIOD"]
[344564121,1733551832105,-331.06386769,7.678e-05,2]
[344564122,1733551832114,-200.0,7.678e-05,2]
[344564123,1733551832124,-200.0,7.678e-05,2]
[344564124,1733551832136,-200.0,7.678e-05,2]
[344564125,1733551832146,-2715.72185378,7.678e-05,2]
[344564126,1733551832154,-200.0,7.679e-05,2]
[344564127,1733551832164,-486.70545148,7.679e-05,2]
[344564128,1733551832174,-273.77181646,7.679e-05,2]
[344564129,1733551832183,-331.06386769,7.679e-05,2]
[344564130,1733551832193,-3620.9624717,7.679e-05,2]
[344564131,1733551832202,-648.94060197,7.68e-05,2]
[344564132,1733551832211,-200.0,7.68e-05,2]
[344564133,1733551832221,-200.0,7.68e-05,2]
[344564134,1733551832231,-273.77181646,7.68e-05,2]
[344564135,1733551832240,-248.29790077,7.68e-05,2]
[344564136,1733551832249,-486.70545148,7.68e-05,2]
[344564137,1733551832258,-200.0,7.68e-05,2]
[344564138,1733551832267,-331.06386769,7.68e-05,2]
[344564139,1733551832277,-200.0,7.68e-05,2]
[344564140,1733551832286,-273.77181646,7.68e-05,2]
[344564141,1733551832296,-200.0,7.68e-05,2]
[344564142,1733551832307,-8583.02215515,7.68e-05,2]
[344564143,1733551832317,-486.70545148,7.681e-05,2]
[344564144,1733551832327,-8583.02215515,7.681e-05,2]
[344564145,1733551832336,-200.0,7.681e-05,2]
[344564146,1733551832346,-865.25413596,7.681e-05,2]
[344564147,1733551832355,-200.0,7.681e-05,2]
[344564148,1733551832365,-200.0,7.681e-05,2]
[344564149,1733551832374,-250.52407595,7.682e-05,2]
[344564150,1733551832383,-200.0,7.682e-05,2]
[344564151,1733551832393,-331.06386769,7.682e-05,2]
[344564152,1733551832402,-1153.67218128,7.682e-05,2]
[344564153,1733551832411,-248.29790077,7.682e-05,2]
[344564154,1733551832421,-200.0,7.682e-05,2]
[344564155,1733551832430,-200.0,7.682e-05,2]
[344564156,1733551832439,-200.0,7.682e-05,2]
[344564157,1733551832448,-331.06386769,7.683e-05,2]
[344564158,1733551832457,-8583.02215515,7.683e-05,2]
[344564159,1733551832466,-200.0,7.683e-05,2]
[344564160,1733551832701,-865.25413596,7.683e-05,2]
[344564161,1733551832712,-205.32886234,7.683e-05,2]
[344564162,1733551832722,-4827.94996227,7.683e-05,2]
[344564163,1733551832731,-2036.79139033,7.683e-05,2]
[344564165,1733551832741,-250.52407595,7.683e-05,2]
[344564166,1733551832750,-200.0,7.683e-05,2]
[344564168,1733551832760,-250.52407595,7.683e-05,2]
[344564170,1733551832769,-2036.79139033,7.683e-05,2]
[344564172,1733551832779,-648.94060197,7.683e-05,2]
[344564174,1733551832788,-200.0,7.683e-05,2]
[344564176,1733551832797,-4827.94996227,7.683e-05,2]
[344564178,1733551832807,-648.94060197,7.684e-05,2]
[344564180,1733551832817,-200.0,7.684e-05,2]
[344564182,1733551832826,-200.0,7.684e-05,2]
[344564183,1733551832835,-200.0,7.684e-05,2]
[344564184,1733551832844,-200.0,7.684e-05,2]
[344564185,1733551832853,-200.0,7.684e-05,2]
[344564186,1733551832863,-200.0,7.684e-05,2]
[344564187,1733551832872,-200.0,7.684e-05,2]
[344564188,1733551832881,-205.32886234,7.685e-05,2]
[344564189,1733551832889,-200.0,7.685e-05,2]
[344564190,1733551832898,-3620.9624717,7.685e-05,2]
[344564191,1733551832908,-200.0,7.685e-05,2]
[344564192,1733551832917,-200.0,7.686e-05,2]
[344564193,1733551832927,-2715.72185378,7.686e-05,2]
[344564194,1733551832936,-865.25413596,7.686e-05,2]
[344564195,1733551832948,-365.02908861,7.686e-05,2]
[344564196,1733551832958,-200.0,7.686e-05,2]
[344564197,1733551832967,-200.0,7.686e-05,2]
[344564198,1733551832976,-200.0,7.686e-05,2]
[344564199,1733551832986,-200.0,7.686e-05,2]
[344564200,1733551832995,-200.0,7.686e-05,2]
[344564201,1733551833004,-200.0,7.686e-05,2]
[344564202,1733551833013,-200.0,7.687e-05,2]
[344564203,1733551833023,-200.0,7.687e-05,2]
[344564204,1733551833032,-6437.26661636,7.687e-05,2]
[344564205,1733551833041,-200.0,7.687e-05,2]
[344564206,1733551833050,-6437.26661636,7.687e-05,2]
[344564207,1733551833064,-3620.9624717,7.687e-05,2]
[344564208,1733551833074,-334.03210127,7.687e-05,2]
[344564209,1733551833083,-486.70545148,7.688e-05,2]
[344564210,1733551833094,-205.32886234,7.688e-05,2]
[344564211,1733551833103,-1153.67218128,7.688e-05,2]
[344564212,1733551833112,-250.52407595,7.688e-05,2]
[344564213,1733551833122,-248.29790077,7.688e-05,2]
[344564214,1733551833131,-200.0,7.688e-05,2]
[344564215,1733551833142,-200.0,7.688e-05,2]
[344564216,1733551833152,-200.0,7.688e-05,2]
[344564217,1733551833162,-8583.02215515,7.689e-05,2]
[344564218,1733551833172,-6437.26661636,7.689e-05,2]
[344564219,1733551833181,-273.77181646,7.689e-05,2]
[344564220,1733551833191,-6437.26661636,7.689e-05,2]
[344564221,1733551833200,-331.06386769,7.689e-05,2]
[344564222,1733551833210,-365.02908861,7.689e-05,2]
[344564223,1733551833221,-200.0,7.689e-05,2]
[344564224,1733551833230,-648.94060197,7.689e-05,2]
[344564225,1733551833240,-365.02908861,7.689e-05,2]
[344564226,1733551833251,-1153.67218128,7.689e-05,2]
[344564227,1733551833260,-200.0,7.69e-05,2]
[344564228,1733551833270,-2036.79139033,7.69e-05,2]
[344564229,1733551833279,-200.0,7.69e-05,2]
[344564230,1733551833289,-200.0,7.69e-05,2]
[344564231,1733551833300,-200.0,7.69e-05,2]
[344564232,1733551833310,-2715.72185378,7.69e-05,2]
[344564233,1733551833320,-4827.94996227,7.691e-05,2]
[344564234,1733551833330,-2715.72185378,7.691e-05,2]
[344564235,1733551833340,-2036.79139033,7.691e-05,2]
[344564236,1733551833351,-200.0,7.691e-05,2]
[344564237,1733551833360,-200.0,7.691e-05,2]
[344564238,1733551833371,-250.52407595,7.691e-05,2]
[344564239,1733551833380,-648.94060197,7.691e-05,2]
[344564240,1733551833390,-365.02908861,7.691e-05,2]
[344564241,1733551833399,-248.29790077,7.691e-05,2]
[344564242,1733551833409,-200.0,7.692e-05,2]
[344564243,1733551833418,-273.77181646,7.692e-05,2]
[344564244,1733551833428,-1153.67218128,7.692e-05,2]
[344564245,1733551833437,-200.0,7.693e-05,2]
[344564246,1733551833447,-2036.79139033,7.693e-05,2]
[344564247,1733551833456,-200.0,7.693e-05,2]
[344564248,1733551833466,-200.0,7.693e-05,2]
[344564249,1733551833475,-1153.67218128,7.693e-05,2]
[344564250,1733551833485,-200.0,7.693e-05,2]
[344564251,1733551833494,-200.0,7.693e-05,2]
[344564252,1733551833503,-200.0,7.694e-05,2]
[344564253,1733551833513,-334.03210127,7.694e-05,2]
[344564254,1733551833522,-200.0,7.694e-05,2]
[344564255,1733551833531,-4827.94996227,7.694e-05,2]
[344564256,1733551833541,-200.0,7.694e-05,2]
[344564257,1733551833550,-200.0,7.694e-05,2]
[344564258,1733551833559,-334.03210127,7.695e-05,2]
[344564259,1733551833568,-648.94060197,7.695e-05,2]
[344564260,1733551833578,-8583.02215515,7.695e-05,2]
[344564261,1733551833588,-200.0,7.695e-05,2]
[344564262,1733551833597,-865.25413596,7.695e-05,2]
[344564263,1733551833607,-200.0,7.695e-05,2]
[344564264,1733551833616,-334.03210127,7.696e-05,2]
[344564265,1733551833625,-248.29790077,7.696e-05,2]
[344564266,1733551833635,-1153.67218128,7.696e-05,2]
[344564267,1733551833644,-865.25413596,7.696e-05,2]
[344564268,1733551833653,-200.0,7.696e-05,2]
[344564269,1733551833662,-4827.94996227,7.696e-05,2]
[344564270,1733551833672,-3620.9624717,7.696e-05,2]
[344564271,1733551833681,-200.0,7.697e-05,2]
[344564272,1733551833690,-2036.79139033,7.697e-05,2]
[344564273,1733551833699,-200.0,7.697e-05,2]
[344564274,1733551833710,-200.0,7.697e-05,2]
[344564275,1733551833720,-200.0,7.697e-05,2]
[344564276,1733551833729,-486.70545148,7.697e-05,2]
[344564277,1733551833739,-865.25413596,7.698e-05,2]
[344564278,1733551833748,-200.0,7.698e-05,2]
[344564279,1733551833758,-200.0,7.698e-05,2]
[344564280,1733551833767,-205.32886234,7.698e-05,2]
[344564281,1733551833777,-3620.9624717,7.698e-05,2]
[344564282,1733551833786,-205.32886234,7.698e-05,2]
[344564283,1733551833795,-200.0,7.698e-05,2]
[344564284,1733551833806,-200.0,7.698e-05,2]
[344564285,1733551833822,-2715.72185378,7.698e-05,2]
[344564286,1733551833832,-200.0,7.699e-05,2]
[344564287,1733551833841,-250.52407595,7.699e-05,2]
[344564288,1733551833850,-3620.9624717,7.699e-05,2]
[344564289,1733551833859,-4827.94996227,7.699e-05,2]
[344564290,1733551833868,-273.77181646,7.7e-05,2]
[344564291,1733551833878,-6437.26661636,7.7e-05,2]
[344564292,1733551833887,-200.0,7.7e-05,2]
[344564293,1733551833896,-8583.02215515,7.7e-05,2]
[344564294,1733551833905,-365.02908861,7.7e-05,2]
[344564295,1733551833914,-200.0,7.7e-05,2]
[344564296,1733551833923,-365.02908861,7.7e-05,2]
[344564297,1733551833932,-6437.26661636,7.7e-05,2]
[344564298,1733551833941,-2000.0,8.7e-05,2]
[344564299,1733551833950,-2495.07221379,9.151e-05,2]
[344564300,1733551833959,-1163.81,9.151e-05,2]
[344564301,1733551833969,-250.0,0.00010816,2]
[344564302,1733551833978,-175.65,0.00010818,2]
[344564303,1733551833987,-150.0,0.00010899,2]
[344564304,1733551833996,-250.0,0.00010993,2]
[344564305,1733551834005,-150.0,0.00010996,2]
[344564306,1733551834015,-300.0,0.00011058,2]
[344564307,1733551834024,-23900.0,0.00011059,2]
[344564308,1733551834034,-150.0,0.00011112,2]
[344564309,1733551834043,-337.89,0.00011119,2]
[344564310,1733551834052,-372.87,0.00011213,2]
[344564311,1733551834064,-231.86,0.00011213,2]
[344564312,1733551834074,-440.68,0.00011282,2]
[344564313,1733551834083,-250.0,0.0001133,2]
[344564314,1733551834092,-1163.81,0.00011415,2]
[344564315,1733551834102,-1000.0,0.00011485,2]
[344564316,1733551834112,-2751.0,0.00011507,2]
[344564317,1733551834121,-435.17,0.00011537,2]
[344564318,1733551834132,-435.17,0.00011537,2]
[344564319,1733551834141,-435.2,0.00011537,2]
[344564320,1733551834150,-869.92,0.00011578,2]
[344564321,1733551834160,-435.17,0.00011778,2]
[344564322,1733551834169,-1582.304,0.00011903,2]
[344564323,1733551834178,-172.405,0.00011903,2]
[344564324,1733551834187,-1000.0,0.00011951,2]
[344564325,1733551834196,-435.17,0.00011978,2]
[344564326,1733551834206,-150.0,0.0001205,2]
[344564327,1733551834215,-500.0,0.00012051,2]
[344564328,1733551834225,-500.0,0.00012051,2]
[344564329,1733551834234,-500.0,0.00012051,2]
[344564330,1733551834243,-500.0,0.00012051,2]
[344564331,1733551834252,-500.0,0.00012051,2]
[344564332,1733551834261,-500.0,0.00012051,2]
[344564333,1733551834271,-500.0,0.00012051,2]
[344564334,1733551834280,-500.0,0.00012051,2]
[344564335,1733551834289,-500.0,0.00012051,2]
[344564336,1733551834298,-500.0,0.00012051,2]
[344564337,1733551834309,-500.0,0.00012051,2]
[344564338,1733551834318,-500.0,0.00012051,2]
[344564339,1733551834327,-500.0,0.00012051,2]
[344564340,1733551834337,-500.0,0.00012051,2]
[344564341,1733551834347,-500.0,0.00012051,2]
[344564342,1733551834356,-500.0,0.00012051,2]
[344564343,1733551834365,-500.0,0.00012051,2]
[344564344,1733551834374,-500.0,0.00012051,2]
[344564345,1733551834383,-500.0,0.00012051,2]
[344564346,1733551834393,-172.05452197,0.00012051,2]
[344564347,1733551834403,-500.0,0.00012051,2]
[344564348,1733551834412,-500.0,0.00012051,2]
[344564349,1733551834421,-500.0,0.00012051,2]
[344564350,1733551834431,-500.0,0.00012051,2]
[344564351,1733551834440,-500.0,0.00012051,2]
[344564352,1733551834449,-500.0,0.00012051,2]
[344564353,1733551834459,-500.0,0.00012051,2]
[344564354,1733551834468,-500.0,0.00012051,2]
[344564355,1733551834478,-500.0,0.00012051,2]
[344564356,1733551834487,-500.0,0.00012051,2]
[344564357,1733551834496,-500.0,0.00012051,2]
[344564358,1733551834506,-189.655,0.00012051,2]
[344564359,1733551834516,-500.0,0.00012051,2]
[344564360,1733551834525,-500.0,0.00012051,2]
[344564361,1733551834535,-500.0,0.00012051,2]
[344564362,1733551834544,-500.0,0.00012051,2]
[344564363,1733551834554,-500.0,0.00012051,2]
[344564364,1733551834563,-500.0,0.00012051,2]
[344564365,1733551834573,-500.0,0.00012051,2]
[344564366,1733551834582,-500.0,0.00012051,2]
[344564367,1733551834591,-500.0,0.00012051,2]
[344564368,1733551834600,-500.0,0.00012051,2]
[344564369,1733551834610,-500.0,0.00012051,2]
[344564370,1733551834619,-500.0,0.00012051,2]
[344564371,1733551834629,-500.0,0.00012051,2]
[344564372,1733551834638,-500.0,0.00012051,2]
[344564373,1733551834647,-500.0,0.00012051,2]
[344564374,1733551834656,-500.0,0.00012051,2]
[344564375,1733551834666,-500.0,0.00012051,2]
[344564376,1733551834675,-500.0,0.00012051,2]
[344564377,1733551834684,-500.0,0.00012051,2]
[344564378,1733551834694,-372.9,0.00012051,2]
[344564379,1733551834703,-174.13,0.00012051,2]
[344564380,1733551834712,-500.0,0.00012051,2]
[344564381,1733551834722,-500.0,0.00012051,2]
[344564382,1733551834731,-500.0,0.00012051,2]
[344564383,1733551834740,-500.0,0.00012051,2]
[344564384,1733551834749,-500.0,0.00012051,2]
[344564385,1733551834758,-500.0,0.00012051,2]
[344564386,1733551834768,-500.0,0.00012051,2]
[344564387,1733551834777,-500.0,0.00012051,2]
[344564388,1733551834787,-500.0,0.00012051,2]
[344564389,1733551834796,-500.0,0.00012051,2]
[344564390,1733551834808,-151.20329684,0.00012051,2]
[344564391,1733551834817,-500.0,0.00012051,2]
[344564392,1733551834826,-169.46,0.00012051,2]
[344564393,1733551834836,-500.0,0.00012051,2]
[344564394,1733551834846,-500.0,0.00012051,2]
[344564395,1733551834856,-500.0,0.00012051,2]
[344564396,1733551834866,-500.0,0.00012051,2]
[344564397,1733551834876,-500.0,0.00012051,2]
[344564398,1733551834885,-162.04,0.00012051,2]
[344564399,1733551834894,-500.0,0.00012051,2]
[344564400,1733551834903,-500.0,0.00012051,2]
[344564401,1733551834913,-500.0,0.00012051,2]
[344564402,1733551834925,-500.0,0.00012051,2]
[344564403,1733551834935,-500.0,0.00012051,2]
[344564404,1733551834944,-500.0,0.00012051,2]
[344564405,1733551834954,-464.41061262,0.00012051,2]
[344564406,1733551834963,-500.0,0.00012051,2]
[344564407,1733551834972,-500.0,0.00012051,2]
[344564408,1733551834981,-500.0,0.00012051,2]
[344564409,1733551834990,-500.0,0.00012051,2]
[344564410,1733551834998,-500.0,0.00012051,2]
[344564411,1733551835007,-500.0,0.00012051,2]
[344564412,1733551835016,-500.0,0.00012051,2]
[344564413,1733551835025,-500.0,0.00012051,2]
[344564414,1733551835034,-500.0,0.00012051,2]
[344564415,1733551835043,-500.0,0.00012051,2]
[344564416,1733551835054,-500.0,0.00012051,2]
[344564417,1733551835065,-500.0,0.00012051,2]
[344564418,1733551835074,-500.0,0.00012051,2]
[344564419,1733551835083,-500.0,0.00012051,2]
[344564420,1733551835092,-500.0,0.00012051,2]
[344564421,1733551835102,-500.0,0.00012051,2]
[344564422,1733551835111,-500.0,0.00012051,2]
[344564423,1733551835120,-500.0,0.00012051,2]
[344564424,1733551835132,-500.0,0.00012051,2]
[344564425,1733551835142,-500.0,0.00012051,2]
[344564426,1733551835151,-500.0,0.00012051,2]
[344564427,1733551835160,-581.47,0.00012051,2]
[344564428,1733551835168,-500.0,0.00012051,2]
[344564429,1733551835178,-500.0,0.00012051,2]
[344564430,1733551835187,-500.0,0.00012051,2]
[344564431,1733551835196,-500.0,0.00012051,2]
[344564432,1733551835205,-500.0,0.00012051,2]
[344564433,1733551835216,-500.0,0.00012051,2]
[344564434,1733551835226,-500.0,0.00012051,2]
[344564435,1733551835235,-500.0,0.00012051,2]
[344564436,1733551835245,-500.0,0.00012051,2]
[344564437,1733551835254,-500.0,0.00012051,2]
[344564438,1733551835263,-500.0,0.00012051,2]
[344564439,1733551835273,-500.0,0.00012051,2]
[344564440,1733551835282,-500.0,0.00012051,2]
[344564441,1733551835291,-500.0,0.00012051,2]
[344564442,1733551835301,-500.0,0.00012051,2]
[344564443,1733551835311,-500.0,0.00012051,2]
[344564444,1733551835320,-500.0,0.00012051,2]
[344564445,1733551835329,-500.0,0.00012051,2]
[344564446,1733551835338,-500.0,0.00012051,2]
[344564447,1733551835347,-276.95,0.00012051,2]
[344564448,1733551835357,-500.0,0.00012051,2]
[344564449,1733551835366,-500.0,0.00012051,2]
[344564450,1733551835375,-500.0,0.00012051,2]
[344564451,1733551835385,-500.0,0.00012051,2]
[344564452,1733551835394,-500.0,0.00012051,2]
[344564453,1733551835403,-500.0,0.00012051,2]
[344564454,1733551835412,-500.0,0.00012051,2]
[344564455,1733551835421,-500.0,0.00012051,2]
[344564456,1733551835430,-500.0,0.00012051,2]
[344564457,1733551835439,-500.0,0.00012051,2]
[344564458,1733551835448,-500.0,0.00012051,2]
[344564459,1733551835457,-500.0,0.00012051,2]
[344564460,1733551835466,-500.0,0.00012051,2]
[344564461,1733551835475,-500.0,0.00012051,2]
[344564462,1733551835484,-500.0,0.00012051,2]
[344564463,1733551835494,-500.0,0.00012051,2]
[344564464,1733551835503,-500.0,0.00012051,2]
[344564465,1733551835512,-500.0,0.00012051,2]
[344564466,1733551835521,-500.0,0.00012052,2]
[344564467,1733551835531,-175.65,0.0001217,2]
[344564468,1733551835541,-200.0,0.00012213,2]
[344564469,1733551835550,-2500.0,0.00012224,2]
[344564470,1733551835561,-500.0,0.00012323,2]
[344564471,1733551835571,-716.24,0.00012323,2]
[344564472,1733551835580,-211.71072204,0.00012323,2]
[344564473,1733551835590,-500.0,0.00012323,2]
[344564474,1733551835599,-1262.68,0.00012323,2]
[344564475,1733551835608,-500.0,0.00012323,2]
[344564476,1733551835618,-500.0,0.00012323,2]
[344564477,1733551835627,-669.04,0.00012323,2]
[344564478,1733551835636,-500.0,0.00012323,2]
[344564479,1733551835645,-729.01,0.00012323,2]
[344564480,1733551835654,-500.0,0.00012323,2]
[344564481,1733551835665,-500.0,0.00012323,2]
[344564482,1733551835674,-2446.28,0.00012323,2]
[344564483,1733551835683,-500.0,0.00012323,2]
[344564484,1733551835692,-745.11,0.00012323,2]
[344564485,1733551835702,-500.0,0.00012323,2]
[344564486,1733551835712,-500.0,0.00012323,2]
[344564487,1733551835721,-797.91,0.00012323,2]
[344564488,1733551835731,-2368.11,0.00012323,2]
[344564489,1733551835740,-500.0,0.00012323,2]
[344564490,1733551835749,-500.0,0.00012323,2]
[344564491,1733551835759,-500.0,0.00012323,2]
[344564492,1733551835768,-192.91,0.00012323,2]
[344564493,1733551835778,-500.0,0.00012323,2]
[344564494,1733551835787,-500.0,0.00012323,2]
[344564495,1733551835797,-1810.9,0.00012323,2]
[344564496,1733551835807,-500.0,0.00012323,2]
[344564497,1733551835817,-338.32,0.00012323,2]
[344564498,1733551835826,-664.77,0.00012323,2]
[344564499,1733551835836,-500.0,0.00012323,2]
[344564500,1733551835845,-2410.65,0.00012323,2]
[344564501,1733551835855,-500.0,0.00012323,2]
[344564502,1733551835865,-717.44,0.00012323,2]
[344564503,1733551835875,-738.24,0.00012323,2]
[344564504,1733551835884,-1075.14,0.00012323,2]
[344564505,1733551835893,-500.0,0.00012323,2]
[344564506,1733551835903,-500.0,0.00012323,2]
[344564507,1733551835912,-1432.08,0.00012323,2]
[344564508,1733551835922,-963.86,0.00012323,2]
[344564509,1733551835931,-948.7,0.00012323,2]
[344564510,1733551835941,-500.0,0.00012323,2]
[344564511,1733551835950,-500.0,0.00012323,2]
[344564512,1733551835959,-500.0,0.00012323,2]
[344564513,1733551835969,-500.0,0.00012323,2]
[344564514,1733551835978,-500.0,0.00012323,2]
[344564515,1733551835987,-500.0,0.00012323,2]
[344564516,1733551835996,-500.0,0.00012323,2]
[344564517,1733551836006,-355.76680955,0.00012323,2]
[344564518,1733551836015,-500.0,0.00012323,2]
[344564519,1733551836024,-500.0,0.00012323,2]
[344564520,1733551836033,-500.0,0.00012323,2]
[344564521,1733551836043,-500.0,0.00012323,2]
[344564522,1733551836052,-708.62,0.00012323,2]
[344564523,1733551836065,-500.0,0.00012324,2]
[344564524,1733551836075,-500.0,0.00012324,2]
[344564525,1733551836084,-500.0,0.00012324,2]
[344564526,1733551836093,-500.0,0.00012324,2]
[344564527,1733551836103,-500.0,0.00012324,2]
[344564528,1733551836113,-500.0,0.00012324,2]
[344564529,1733551836122,-500.0,0.00012324,2]
[344564530,1733551836131,-500.0,0.00012324,2]
[344564531,1733551836141,-500.0,0.00012324,2]
[344564532,1733551836151,-500.0,0.00012324,2]
[344564533,1733551836160,-500.0,0.00012324,2]
[344564534,1733551836170,-500.0,0.00012324,2]
[344564535,1733551836180,-500.0,0.00012324,2]
[344564536,1733551836189,-500.0,0.00012324,2]
[344564537,1733551836198,-500.0,0.00012324,2]
[344564538,1733551836207,-500.0,0.00012324,2]
[344564539,1733551836218,-500.0,0.00012324,2]
[344564540,1733551836227,-500.0,0.00012324,2]
[344564541,1733551836236,-500.0,0.00012324,2]
[344564542,1733551836246,-500.0,0.00012324,2]
[344564543,1733551836256,-500.0,0.00012324,2]
[344564544,1733551836266,-500.0,0.00012324,2]
[344564545,1733551836275,-500.0,0.00012324,2]
[344564546,1733551836284,-500.0,0.00012324,2]
[344564547,1733551836294,-500.0,0.00012324,2]
[344564548,1733551836303,-591.12154362,0.00012324,2]
[344564549,1733551836314,-500.0,0.00012324,2]
[344564550,1733551836323,-500.0,0.00012324,2]
[344564551,1733551836332,-500.0,0.00012324,2]
[344564552,1733551836342,-500.0,0.00012324,2]
[344564553,1733551836351,-500.0,0.00012324,2]
[344564554,1733551836361,-500.0,0.00012324,2]
[344564555,1733551836370,-500.0,0.00012324,2]
[344564556,1733551836379,-188.43,0.00012324,2]
[344564557,1733551836389,-500.0,0.00012324,2]
[344564558,1733551836399,-500.0,0.00012324,2]
[344564559,1733551836409,-500.0,0.00012324,2]
[344564560,1733551836418,-500.0,0.00012324,2]
[344564561,1733551836428,-500.0,0.00012324,2]
[344564562,1733551836437,-500.0,0.00012324,2]
[344564563,1733551836446,-500.0,0.00012324,2]
[344564564,1733551836455,-500.0,0.00012324,2]
[344564565,1733551836464,-500.0,0.00012324,2]
[344564566,1733551836474,-500.0,0.00012324,2]
[344564567,1733551836484,-500.0,0.00012324,2]
[344564568,1733551836493,-500.0,0.00012324,2]
[344564569,1733551836503,-500.0,0.00012324,2]
[344564570,1733551836513,-500.0,0.00012324,2]
[344564571,1733551836522,-500.0,0.00012324,2]
[344564572,1733551836532,-500.0,0.00012324,2]
[344564573,1733551836542,-500.0,0.00012324,2]
[344564574,1733551836552,-500.0,0.00012324,2]
[344564575,1733551836563,-500.0,0.00012324,2]
[344564576,1733551836572,-500.0,0.00012324,2]
[344564577,1733551836582,-500.0,0.00012324,2]
[344564578,1733551836592,-366.45,0.00012324,2]
[344564579,1733551836601,-500.0,0.00012324,2]
[344564580,1733551836799,-500.0,0.00012324,2]
[344564581,1733551836811,-500.0,0.00012324,2]
[344564582,1733551836821,-500.0,0.00012324,2]
[344564583,1733551836831,-500.0,0.00012324,2]
[344564584,1733551836840,-500.0,0.00012324,2]
[344564585,1733551836850,-500.0,0.00012324,2]
[344564586,1733551836860,-500.0,0.00012324,2]
[344564587,1733551836869,-500.0,0.00012324,2]
[344564588,1733551836880,-500.0,0.00012324,2]
[344564589,1733551836889,-500.0,0.00012324,2]
[344564590,1733551836899,-500.0,0.00012324,2]
[344564591,1733551836908,-500.0,0.00012324,2]
[344564592,1733551836917,-500.0,0.00012324,2]
[344564593,1733551836926,-500.0,0.00012324,2]
[344564594,1733551836935,-500.0,0.00012324,2]
[344564595,1733551836945,-500.0,0.00012324,2]
[344564596,1733551836954,-500.0,0.00012324,2]
[344564597,1733551836964,-500.0,0.00012324,2]
[344564598,1733551836974,-500.0,0.00012324,2]
[344564599,1733551836984,-500.0,0.00012324,2]
[344564600,1733551836993,-500.0,0.00012324,2]
[344564601,1733551837002,-500.0,0.00012324,2]
[344564602,1733551837012,-500.0,0.00012324,2]
[344564603,1733551837021,-500.0,0.00012324,2]
[344564604,1733551837031,-500.0,0.00012324,2]
[344564605,1733551837042,-1114.76,0.00012324,2]
[344564606,1733551837053,-500.0,0.00012324,2]
[344564607,1733551837069,-500.0,0.00012324,2]
[344564608,1733551837078,-500.0,0.00012324,2]
[344564609,1733551837087,-500.0,0.00012324,2]
[344564610,1733551837097,-500.0,0.00012324,2]
[344564611,1733551837107,-500.0,0.00012324,2]
[344564612,1733551837116,-627.46096818,0.00012324,2]
[344564613,1733551837127,-500.0,0.00012324,2]
[344564614,1733551837138,-500.0,0.00012324,2]
[344564615,1733551837147,-500.0,0.00012324,2]
[344564616,1733551837158,-500.0,0.00012324,2]
[344564617,1733551837168,-501.08152239,0.00012324,2]
[344564618,1733551837178,-500.49,0.00012324,2]
[344564619,1733551837188,-500.0,0.00012324,2]
[344564620,1733551837198,-500.0,0.00012324,2]
[344564621,1733551837207,-500.0,0.00012324,2]
[344564622,1733551837218,-500.0,0.00012324,2]
[344564623,1733551837228,-500.0,0.00012324,2]
[344564624,1733551837237,-500.0,0.00012324,2]
[344564625,1733551837247,-500.0,0.00012324,2]
[344564626,1733551837257,-500.0,0.00012324,2]
[344564627,1733551837266,-500.0,0.00012324,2]
[344564628,1733551837276,-500.0,0.00012324,2]
[344564629,1733551837287,-500.0,0.00012324,2]